[Event "Oslo Chess Festival 2017"]
[Site "Oslo"]
[Date "2017.09.30"]
[Round "3"]
[White "Kleinert, Juergen"]
[Black "Ernst, Thomas"]
[Result "0-1"]
[ECO "B22"]
[WhiteElo "1918"]
[BlackElo "2371"]
[Annotator "NA"]
[PlyCount "84"]
[EventDate "2017.??.??"]
[EventType "swiss"]
[EventCountry "NOR"]
[SourceTitle "playchess.com"]
[Source "ChessBase"]
[SourceQuality "1"]
[TimeControl "5400+30"]

1. e4 {[%emt 0:00:03]} c5 {[%emt 0:00:11]} 2. c3 {[%emt 0:00:06]} d5 {[%emt 0:00:09]} 3. exd5 {[%emt 0:00:06]} Qxd5 {[%emt 0:00:09]} 4. d4 {[%emt 0:00:15]} Nf6 {[%emt 0:00:37]} 5. Nf3 {[%emt 0:01:16]} e6 {[%emt 0:00:24]} 6. Be2 {[%emt 0:06:34]} Nc6 {[%emt 0:06:19]} 7. O-O {[%emt 0:00:35]} cxd4 {[%emt 0:01:04]} 8. cxd4 {[%emt 0:00:34]} Be7 {[%emt 0:00:31]} 9. Nc3 {[%emt 0:03:29]} Qd6 {[%emt 0:00:46]} 10. Nb5 {[%emt 0:02:19]} Qd8 {[%emt 0:00:27]} 11. Bf4 {[%emt 0:06:50]} Nd5 {[%emt 0:00:22]} 12. Bg3 {[%emt 0:01:42]} a6 {[%emt 0:02:50]} 13. Nc3 {[%emt 0:01:02]} O-O {[%emt 0:01:11]} 14. Rc1 {[%emt 0:03:42]} Nf6 {[%emt 0:02:32]} 15. a3 {[%emt 0:08:41]} Nh5 {[%emt 0:06:28]} 16. Be5 {[%emt 0:09:02]} Nxe5 {[%emt 0:00:29]} 17. dxe5 {[%emt 0:00:34]} Nf4 {[%emt 0:01:53]} 18. Re1 {[%emt 0:04:00]} Nxe2+ {[%emt 0:06:53]} 19. Rxe2 {[%emt 0:05:19]} b5 {[%emt 0:05:15]} 20. Rd2 {[%emt 0:03:05]} Qb6 {[%emt 0:02:54]} 21. Qe2 {[%emt 0:04:21]} Bb7 {[%emt 0:06:29]} 22. Rd7 {[%emt 0:00:50]} Rfe8 {[%emt 0:00:44]} 23. Rcd1 {[%emt 0:05:41]} Rad8 {[%emt 0:11:51]} 24. h3 {[%emt 0:07:11]} Bc6 {[%emt 0:01:40]} 25. R7d3 {[%emt 0:01:18]} Rxd3 {[%emt 0:00:27]} 26. Rxd3 {[%emt 0:00:52]} Rd8 {[%emt 0:00:24]} 27. Rxd8+ {[%emt 0:03:37]} Qxd8 {[%emt 0:02:34]} 28. Qe3 {[%emt 0:01:23]} b4 {[%emt 0:02:28]} 29. axb4 {[%emt 0:02:05]} Bxb4 {[%emt 0:00:08]} 30. Nd4 {[%emt 0:01:40]} Bb7 {[%emt 0:00:51]} 31. Nc2 {[%emt 0:03:06]} Bf8 {[%emt 0:01:10]} 32. Ne1 {[%emt 0:02:38]} Qc7 {[%emt 0:01:40]} 33. Nd3 {[%emt 0:00:21]} Qc4 {[%emt 0:02:05]} 34. Kh2 {[%emt 0:02:49]} a5 {[%emt 0:01:30]} 35. Nf4 {[%emt 0:01:39]} Qc5 {[%emt 0:04:37]} 36. Qe2 {[%emt 0:01:03]} g6 {[%emt 0:02:32]} 37. Nd3 {[%emt 0:00:23]} Qd4 {[%emt 0:00:35]} 38. Qc2 {[%emt 0:01:28]} Ba6 {[%emt 0:00:55]} 39. Nc1 {[%emt 0:01:05]} Qxe5+ {[%emt 0:00:28]} 40. Kg1 {[%emt 0:00:11]} Qe1+ {[%emt 0:00:19]} 41. Kh2 {[%emt 0:00:04]} Bd6+ {[%emt 0:00:16]} 42. g3 {[%emt 0:00:03]} Bb7 {[%emt 0:00:29]} 0-1

[Event "Oslo Chess Festival 2017"]
[Site "Oslo"]
[Date "2017.09.30"]
[Round "3"]
[White "Omtvedt, Per"]
[Black "Ronneland, Daniel"]
[Result "0-1"]
[ECO "C95"]
[WhiteElo "1880"]
[BlackElo "2218"]
[Annotator "NA"]
[PlyCount "92"]
[EventDate "2017.??.??"]
[EventType "swiss"]
[EventCountry "NOR"]
[SourceTitle "playchess.com"]
[Source "ChessBase"]
[SourceQuality "1"]
[TimeControl "5400+30"]

1. e4 {[%emt 0:00:05]} e5 {[%emt 0:00:12]} 2. Nf3 {[%emt 0:00:19]} Nc6 {[%emt 0:00:06]} 3. Bb5 {[%emt 0:00:29]} a6 {[%emt 0:00:10]} 4. Ba4 {[%emt 0:00:24]} Nf6 {[%emt 0:00:07]} 5. O-O {[%emt 0:01:02]} Be7 {[%emt 0:02:19]} 6. Re1 {[%emt 0:00:31]} b5 {[%emt 0:00:06]} 7. Bb3 {[%emt 0:00:09]} d6 {[%emt 0:00:06]} 8. c3 {[%emt 0:00:28]} O-O {[%emt 0:00:07]} 9. h3 {[%emt 0:00:13]} Nb8 {[%emt 0:00:25]} 10. d4 {[%emt 0:00:41]} Nbd7 {[%emt 0:00:07]} 11. Nbd2 {[%emt 0:01:07]} Bb7 {[%emt 0:00:07]} 12. Bc2 {[%emt 0:00:27]} Re8 {[%emt 0:00:37]} 13. Nf1 {[%emt 0:00:56]} Bf8 {[%emt 0:00:21]} 14. Ng3 {[%emt 0:00:21]} g6 {[%emt 0:00:10]} 15. a4 {[%emt 0:02:32]} c5 {[%emt 0:00:49]} 16. dxe5 {[%emt 0:07:41]} dxe5 {[%emt 0:01:54]} 17. Be3 {[%emt 0:01:31]} c4 {[%emt 0:01:12]} 18. Qe2 {[%emt 0:11:01]} Qc7 {[%emt 0:03:00]} 19. Nd2 {[%emt 0:03:20]} Nc5 {[%emt 0:15:09]} 20. Ra2 {[%emt 0:02:51]} Ne6 {[%emt 0:03:42]} 21. f3 {[%emt 0:03:31]} h5 {[%emt 0:01:26]} 22. Qf2 {[%emt 0:00:42]} Nd7 {[%emt 0:02:08]} 23. Ne2 {[%emt 0:03:12]} Ndc5 {[%emt 0:06:26]} 24. g4 {[%emt 0:05:25]} hxg4 {[%emt 0:03:14]} 25. hxg4 {[%emt 0:00:38]} Nd3 {[%emt 0:02:19]} 26. Bxd3 {[%emt 0:00:23]} cxd3 {[%emt 0:00:32]} 27. Nc1 {[%emt 0:00:31]} Red8 {[%emt 0:04:14]} 28. axb5 {[%emt 0:02:50]} Nf4 {[%emt 0:10:58]} 29. Kh2 {[%emt 0:02:32]} Qd6 {[%emt 0:03:03]} 30. bxa6 {[%emt 0:02:14]} Qf6 {[%emt 0:02:50]} 31. Qg3 {[%emt 0:05:12]} Rxa6 {[%emt 0:01:40]} 32. Rxa6 {[%emt 0:02:25]} Bxa6 {[%emt 0:00:16]} 33. Bxf4 {[%emt 0:01:13]} exf4 {[%emt 0:00:19]} 34. Qf2 {[%emt 0:00:29]} Bc5 {[%emt 0:00:48]} 35. Qxc5 {[%emt 0:08:20]} Qh4+ {[%emt 0:00:15]} 36. Kg2 {[%emt 0:00:16]} Qxe1 {[%emt 0:00:19]} 37. Ncb3 {[%emt 0:00:18]} Rb8 {[%emt 0:06:27]} 38. Qe5 {[%emt 0:06:55]} Qg3+ {[%emt 0:05:38]} 39. Kh1 {[%emt 0:00:44]} Rxb3 {[%emt 0:00:43]} 40. Nxb3 {[%emt 0:01:59]} Qxf3+ {[%emt 0:00:41]} 41. Kh2 {[%emt 0:00:24]} Qg3+ {[%emt 0:00:18]} 42. Kh1 {[%emt 0:00:10]} Qh3+ {[%emt 0:00:17]} 43. Kg1 {[%emt 0:00:08]} Qxg4+ {[%emt 0:00:08]} 44. Kh2 {[%emt 0:00:21]} Qe2+ {[%emt 0:00:12]} 45. Kg1 {[%emt 0:01:47]} Qd1+ {[%emt 0:03:27]} 46. Kh2 {[%emt 0:00:42]} Qxb3 {[%emt 0:00:21]} 0-1

[Event "Oslo Chess Festival 2017"]
[Site "Oslo"]
[Date "2017.09.30"]
[Round "3"]
[White "Holand, Per Fredrik"]
[Black "Nordquelle, Daniel"]
[Result "0-1"]
[ECO "A84"]
[WhiteElo "1866"]
[BlackElo "2203"]
[Annotator "NA"]
[PlyCount "102"]
[EventDate "2017.??.??"]
[EventType "swiss"]
[EventCountry "NOR"]
[SourceTitle "playchess.com"]
[Source "ChessBase"]
[SourceQuality "1"]
[TimeControl "5400+30"]

1. d4 {[%emt 0:00:02]} d5 {[%emt 0:00:10]} 2. c4 {[%emt 0:00:06]} e6 {[%emt 0:00:03]} 3. Nc3 {[%emt 0:00:05]} c6 {[%emt 0:00:09]} 4. e3 {[%emt 0:00:14]} Nd7 {[%emt 0:00:06]} 5. Nf3 {[%emt 0:00:07]} f5 {[%emt 0:00:05]} 6. Bd3 {[%emt 0:00:33]} Nh6 {[%emt 0:00:05]} 7. Bd2 {[%emt 0:02:59]} Bd6 {[%emt 0:01:35]} 8. Rb1 {[%emt 0:03:10]} Qe7 {[%emt 0:03:54]} 9. Ne2 {[%emt 0:11:54]} Nf7 {[%emt 0:01:40]} 10. b4 {[%emt 0:00:37]} Nf6 {[%emt 0:01:15]} 11. b5 {[%emt 0:01:21]} cxb5 {[%emt 0:05:17]} 12. cxd5 {[%emt 0:03:23]} exd5 {[%emt 0:02:48]} 13. Bxb5+ {[%emt 0:00:54]} Kf8 {[%emt 0:01:19]} 14. h4 {[%emt 0:11:20]} Ne4 {[%emt 0:04:28]} 15. Qb3 {[%emt 0:08:29]} Be6 {[%emt 0:01:09]} 16. Bb4 {[%emt 0:01:01]} g6 {[%emt 0:13:04]} 17. Nf4 {[%emt 0:06:43]} Kg7 {[%emt 0:02:00]} 18. O-O {[%emt 0:17:00]} Rhc8 {[%emt 0:07:16]} 19. Bxd6 {[%emt 0:07:34]} Qxd6 {[%emt 0:01:41]} 20. Rfc1 {[%emt 0:00:34]} h6 {[%emt 0:02:56]} 21. Qb2 {[%emt 0:04:34]} g5 {[%emt 0:04:43]} 22. hxg5 {[%emt 0:00:09]} hxg5 {[%emt 0:00:05]} 23. Nd3 {[%emt 0:00:15]} a6 {[%emt 0:04:48]} 24. Ba4 {[%emt 0:00:39]} b5 {[%emt 0:00:06]} 25. Bb3 {[%emt 0:00:14]} Qe7 {[%emt 0:02:55]} 26. Nfe5 {[%emt 0:02:00]} Nfd6 {[%emt 0:01:26]} 27. Nc6 {[%emt 0:03:25]} Qe8 {[%emt 0:00:45]} 28. Nde5 {[%emt 0:00:47]} Nc4 {[%emt 0:00:43]} 29. Bxc4 {[%emt 0:00:44]} bxc4 {[%emt 0:03:39]} 30. Qb7+ {[%emt 0:01:34]} Kh6 {[%emt 0:00:39]} 31. g3 {[%emt 0:02:53]} Nd6 {[%emt 0:00:35]} 32. Qb4 {[%emt 0:01:15]} Rxc6 {[%emt 0:00:45]} 33. Nxc6 {[%emt 0:00:26]} Qxc6 {[%emt 0:00:05]} 34. Kg2 {[%emt 0:00:26]} Kg6 {[%emt 0:00:42]} 35. Qa5 {[%emt 0:00:51]} Kf6 {[%emt 0:08:28]} 36. Rb6 {[%emt 0:00:45]} Qd7 {[%emt 0:01:29]} 37. Rxa6 {[%emt 0:01:38]} Rxa6 {[%emt 0:00:31]} 38. Qxa6 {[%emt 0:00:08]} f4 {[%emt 0:00:59]} 39. Rh1 {[%emt 0:01:53]} fxe3 {[%emt 0:01:52]} 40. fxe3 {[%emt 0:00:21]} Nf5 {[%emt 0:00:07]} 41. Qa3 {[%emt 0:00:53]} Kg7 {[%emt 0:00:31]} 42. Qc3 {[%emt 0:01:34]} Qa7 {[%emt 0:00:49]} 43. a3 {[%emt 0:01:59]} Nd6 {[%emt 0:01:10]} 44. Rf1 {[%emt 0:02:23]} Bf5 {[%emt 0:01:43]} 45. Qb4 {[%emt 0:00:42]} Qe7 {[%emt 0:02:12]} 46. Qd2 {[%emt 0:02:24]} Qe6 {[%emt 0:01:06]} 47. Ra1 {[%emt 0:00:33]} Ne4 {[%emt 0:00:54]} 48. Qe1 {[%emt 0:00:20]} c3 {[%emt 0:00:37]} 49. a4 {[%emt 0:00:08]} Nd2 {[%emt 0:00:07]} 50. Qf2 {[%emt 0:01:06]} Be4+ {[%emt 0:00:14]} 51. Kg1 {[%emt 0:00:23]} Qh3 {[%emt 0:00:11]} 0-1